[Event "Bremer Silvester Open-B 2024"]
[Site "Bremen"]
[Date "2024.12.27"]
[Round "2.1"]
[White "Supplieth, Peter"]
[Black "Beeck, Sebastian"]
[Result "1/2-1/2"]
[ECO "C84"]
[WhiteElo "1890"]
[BlackElo "1753"]
[Annotator "NA RC"]
[PlyCount "111"]
[EventDate "2024.12.16"]
[EventType "swiss"]
[EventCountry "GER"]
[SourceTitle "playchess.com"]
[Source "ChessBase"]
[SourceQuality "1"]
[TimeControl "5400+30"]

1. e4 {[%emt 0:00:04]} e5 {[%emt 0:00:14]} 2. Nf3 {[%emt 0:00:09]} Nc6 {[%emt 0:00:09]} 3. Bb5 {[%emt 0:00:07]} a6 {[%emt 0:00:15]} 4. Ba4 {[%emt 0:00:05]} Nf6 {[%emt 0:00:21]} 5. O-O {[%emt 0:00:10]} Be7 {[%emt 0:00:16]} 6. d3 {[%emt 0:02:02]} b5 {[%emt 0:03:54]} 7. Bb3 {[%emt 0:00:06]} d6 {[%emt 0:01:31]} 8. c3 {[%emt 0:00:08]} O-O {[%emt 0:02:27]} 9. Be3 {[%emt 0:02:22] C84: Closed Ruy Lopez: Unusual White 6th moves.} Na5 {[%emt 0:06:20]} 10. Bc2 {[%emt 0:01:29]} c5 {[%emt 0:02:36]} 11. h3 {[%emt 0:01:28]} Bb7 {[%emt 0:02:39]} 12. Nbd2 {[%emt 0:00:30]} Nc6 {[%emt 0:08:03] 12...Nc6 has lost popularity.} 13. d4 {[%emt 0:02:45]} cxd4 {[%emt 0:01:51]} 14. cxd4 {[%emt 0:00:06]} exd4 {[%emt 0:01:00]} 15. Nxd4 {[%emt 0:00:38]} Nxd4 $146 {[%emt 0:01:51]} ({Predecessor:} 15... Re8 16. a4 d5 17. Nxc6 Bxc6 18. e5 d4 19. exf6 dxe3 20. fxe7 Qxd2 21. Qxd2 exd2 22. Rfd1 Rxe7 23. Rxd2 bxa4 24. Bxa4 Bxa4 25. Rxa4 g6 26. g3 {½-½ Lieske,G-Lange,S DESC Liga 2016th Gr.A email}) 16. Bxd4 {[%emt 0:00:11]} d5 {[%emt 0:00:29]} 17. e5 {[%emt 0:01:38]} Ne4 {[%emt 0:05:32]} 18. Re1 {[%emt 0:01:40]} Ng5 {[%emt 0:05:32]} 19. Nf3 {[%emt 0:04:58]} Ne6 {[%emt 0:04:33]} 20. Qd3 {[%emt 0:05:27]} g6 {[%emt 0:01:18]} 21. Be3 {[%emt 0:02:48]} Rc8 {[%emt 0:05:19]} 22. Rac1 {[%emt 0:03:33]} Re8 {[%emt 0:11:10]} 23. Red1 {[%emt 0:11:54]} Bf8 {[%emt 0:04:48]} 24. Bb3 {[%emt 0:03:26]} Rxc1 {[%emt 0:01:32]} 25. Rxc1 {[%emt 0:00:36]} Bg7 {[%emt 0:01:27]} 26. Rd1 {[%emt 0:05:09]} Qc7 {[%emt 0:05:02]} 27. Rc1 {[%emt 0:50:31]} Qd7 {[%emt 0:01:23]} 28. Bd2 {[%emt 0:00:00]} d4 {[%emt 0:07:10]} 29. Bxe6 {[%emt 0:00:00]} Qxe6 {[%emt 0:02:18]} 30. Bf4 {[%emt 0:00:00]} Qxa2 {[%emt 0:05:27]} 31. Qxd4 {[%emt 0:00:00]} Bxf3 {[%emt 0:00:49]} 32. gxf3 {[%emt 0:00:00]} Qe6 {[%emt 0:00:56]} 33. Rc5 {[%emt 0:00:00]} Qxh3 {[%emt 0:02:01]} 34. Qd5 {[%emt 0:00:00]} Qf5 {[%emt 0:02:01]} 35. Bg3 {[%emt 0:00:00]} Qb1+ {[%emt 0:01:36]} 36. Kg2 {[%emt 0:00:00]} Qxb2 {[%emt 0:00:10]} 37. Qc6 {[%emt 0:00:00]} Re6 {[%emt 0:03:34]} 38. Qc8+ {[%emt 0:00:40]} Bf8 {[%emt 0:00:04]} 39. Bf4 {[%emt 0:00:43]} g5 {[%emt 0:00:34]} 40. Bxg5 {[%emt 0:01:25]} Rg6 {[%emt 0:00:46]} 41. e6 {[%emt 0:00:40]} fxe6 {[%emt 0:01:05]} 42. Qe8 {[%emt 0:00:50]} Qg7 {[%emt 0:00:38]} 43. f4 {[%emt 0:01:24]} h6 {[%emt 0:00:34]} 44. Rc7 {[%emt 0:00:26]} Rxg5+ {[%emt 0:00:27]} 45. fxg5 {[%emt 0:00:22]} Qxc7 {[%emt 0:00:28]} 46. gxh6 {[%emt 0:01:14]} Qe7 {[%emt 0:00:44]} 47. Qg6+ {[%emt 0:00:57]} Bg7 {[%emt 0:00:17]} 48. Kf1 {[%emt 0:00:41]} Kh8 {[%emt 0:00:45]} 49. hxg7+ {[%emt 0:00:12]} Qxg7 {[%emt 0:00:09]} 50. Qxe6 {[%emt 0:00:05]} Qa1+ {[%emt 0:00:38]} 51. Ke2 {[%emt 0:00:21]} b4 {[%emt 0:00:23]} 52. Qe8+ {[%emt 0:00:45]} Kg7 {[%emt 0:00:24]} 53. Qe7+ {[%emt 0:00:13]} Kg6 {[%emt 0:00:25]} 54. Qxb4 {[%emt 0:00:15]} Qe5+ {[%emt 0:00:32]} 55. Kd3 $11 {[%emt 0:00:52]} Qb5+ {[%emt 0:00:52]} 56. Ke4 {[%emt 0:02:25]} 1/2-1/2

[Event "Bremer Silvester Open-B 2024"]
[Site "Bremen"]
[Date "2024.12.27"]
[Round "2.2"]
[White "Hattenhauer, Klaus"]
[Black "Haas, Vanessa"]
[Result "1-0"]
[ECO "D02"]
[WhiteElo "1848"]
[BlackElo "1750"]
[Annotator "NA"]
[PlyCount "116"]
[EventDate "2024.12.16"]
[EventType "swiss"]
[EventCountry "GER"]
[SourceTitle "playchess.com"]
[Source "ChessBase"]
[SourceQuality "1"]
[TimeControl "5400+30"]

1. d4 {[%emt 0:00:04]} d5 {[%emt 0:00:04]} 2. Bf4 {[%emt 0:00:19]} e6 {[%emt 0:00:57]} 3. Nf3 {[%emt 0:00:12]} c5 {[%emt 0:00:25]} 4. e3 {[%emt 0:00:26]} Nf6 {[%emt 0:01:02]} 5. c3 {[%emt 0:00:42]} c4 {[%emt 0:01:36]} 6. Nbd2 {[%emt 0:01:25] D02: 1 d4 d5 2 Nf3 sidelines, including 2...Nf6 3 g3 and 2...Nf6 3 Bf4.} Bd6 {[%emt 0:00:51]} 7. Bg3 {[%emt 0:02:38]} b5 {[%emt 0:01:03]} 8. a3 {[%emt 0:00:33]} O-O {[%emt 0:01:06]} 9. Be2 {[%emt 0:04:56]} Nc6 {[%emt 0:01:34]} 10. Ne5 {[%emt 0:01:08]} Qc7 {[%emt 0:03:43]} 11. Nxc6 {[%emt 0:06:07]} Qxc6 {[%emt 0:00:11]} 12. O-O {[%emt 0:02:25]} Bxg3 {[%emt 0:03:47]} 13. hxg3 {[%emt 0:00:16]} Re8 {[%emt 0:01:57]} 14. Qc2 {[%emt 0:08:38]} e5 {[%emt 0:11:46]} 15. dxe5 {[%emt 0:00:43]} Rxe5 {[%emt 0:00:25]} 16. Nf3 {[%emt 0:00:19]} Re7 {[%emt 0:06:04]} 17. Nd4 {[%emt 0:00:48]} Qb6 {[%emt 0:05:44]} 18. a4 {[%emt 0:04:00]} bxa4 {[%emt 0:03:03]} 19. Rxa4 {[%emt 0:00:27]} Bd7 {[%emt 0:12:04]} 20. Ra2 {[%emt 0:03:26]} Bg4 {[%emt 0:05:06]} 21. Rfa1 {[%emt 0:07:20]} Rb7 {[%emt 0:06:01]} 22. Bxg4 {[%emt 0:06:30]} Nxg4 {[%emt 0:00:15]} 23. Qf5 {[%emt 0:00:41]} Nf6 {[%emt 0:02:47]} 24. Nc2 {[%emt 0:04:47]} Qe6 {[%emt 0:01:14]} 25. Qf4 {[%emt 0:10:24]} Nd7 {[%emt 0:04:40]} 26. Nb4 {[%emt 0:03:12]} Nb6 {[%emt 0:05:47]} 27. Qd4 {[%emt 0:06:15]} h6 {[%emt 0:02:33]} 28. Na6 {[%emt 0:02:01]} Nd7 {[%emt 0:03:38]} 29. Nb4 {[%emt 0:00:56]} Nb6 {[%emt 0:00:12]} 30. Ra6 {[%emt 0:00:28]} Qe4 {[%emt 0:06:16]} 31. Qd2 {[%emt 0:03:49]} Qe6 {[%emt 0:01:50]} 32. R1a5 {[%emt 0:01:00]} Qe4 {[%emt 0:02:56]} 33. Rb5 {[%emt 0:02:02]} Qe8 {[%emt 0:02:15]} 34. Rba5 {[%emt 0:03:22]} Qe4 {[%emt 0:00:07]} 35. Qc2 {[%emt 0:06:23]} Qxc2 {[%emt 0:00:22]} 36. Nxc2 {[%emt 0:00:10]} Nd7 {[%emt 0:01:19]} 37. Nb4 {[%emt 0:00:39]} Nf6 {[%emt 0:00:21]} 38. Ra2 {[%emt 0:01:00]} Kf8 {[%emt 0:01:22]} 39. Nc6 {[%emt 0:02:25]} Nd7 {[%emt 0:01:25]} 40. Rxa7 {[%emt 0:00:58]} Raxa7 {[%emt 0:00:22]} 41. Nxa7 {[%emt 0:01:36]} Ke7 {[%emt 0:00:42]} 42. Nc6+ {[%emt 0:00:28]} Kd6 {[%emt 0:00:08]} 43. Nb4 {[%emt 0:00:11]} Nc5 {[%emt 0:00:49]} 44. Kf1 {[%emt 0:00:30]} f6 {[%emt 0:01:39]} 45. Ke1 {[%emt 0:00:30]} Ke5 {[%emt 0:00:22]} 46. f3 {[%emt 0:00:55]} Kd6 {[%emt 0:00:03]} 47. Ra8 {[%emt 0:00:57]} Nd3+ {[%emt 0:00:33]} 48. Nxd3 {[%emt 0:00:08]} cxd3 {[%emt 0:00:03]} 49. Ra2 {[%emt 0:00:23]} Kc5 {[%emt 0:00:14]} 50. Kd2 {[%emt 0:00:59]} Kc4 {[%emt 0:01:00]} 51. Ra4+ {[%emt 0:00:30]} Kc5 {[%emt 0:00:07]} 52. Rb4 {[%emt 0:01:40]} Rxb4 {[%emt 0:01:46]} 53. cxb4+ {[%emt 0:00:01]} Kxb4 {[%emt 0:00:08]} 54. Kxd3 {[%emt 0:00:09]} Kb3 {[%emt 0:00:03]} 55. Kd4 {[%emt 0:00:27]} Kxb2 {[%emt 0:00:01]} 56. Kxd5 {[%emt 0:00:17]} Kc3 {[%emt 0:02:42]} 57. e4 {[%emt 0:00:54]} Kd3 {[%emt 0:00:00]} 58. f4 {[%emt 0:00:17]} Kd2 {[%emt 0:01:00]} 1-0

[Event "Bremer Silvester Open-B 2024"]
[Site "Bremen"]
[Date "2024.12.27"]
[Round "2.3"]
[White "Weinitschke, Harald"]
[Black "Wildt, Alexander"]
[Result "0-1"]
[ECO "D11"]
[WhiteElo "1749"]
[BlackElo "1845"]
[Annotator "NA RC"]
[PlyCount "98"]
[EventDate "2024.12.16"]
[EventType "swiss"]
[EventCountry "GER"]
[SourceTitle "playchess.com"]
[Source "ChessBase"]
[SourceQuality "1"]
[TimeControl "5400+30"]

1. Nf3 {[%emt 0:00:19]} d5 {[%emt 0:00:16]} 2. d4 {[%emt 0:00:25]} Nf6 {[%emt 0:00:07]} 3. c4 {[%emt 0:00:28]} c6 {[%emt 0:00:35]} 4. g3 {[%emt 0:00:42]} Bf5 {[%emt 0:00:21]} 5. e3 {[%emt 0:02:43]} e6 {[%emt 0:01:07]} 6. cxd5 {[%emt 0:00:32]} cxd5 {[%emt 0:00:50]} 7. Nc3 {[%emt 0:01:56]} Nc6 {[%emt 0:00:40]} 8. a3 {[%emt 0:01:49]} Bd6 {[%emt 0:00:39]} 9. Bd3 {[%emt 0:00:45]} Bh3 {[%emt 0:01:38]} 10. Ng5 {[%emt 0:03:04]} Bg4 {[%emt 0:00:52]} 11. Be2 {[%emt 0:02:12]} Bxe2 {[%emt 0:01:39]} 12. Qxe2 {[%emt 0:00:31]} O-O {[%emt 0:00:36]} 13. O-O {[%emt 0:00:17]} Rc8 {[%emt 0:00:15]} 14. Bd2 {[%emt 0:01:02]} a6 {[%emt 0:00:41]} 15. Rac1 {[%emt 0:00:50]} Na5 {[%emt 0:00:26]} 16. Qd1 {[%emt 0:03:34]} Nc4 {[%emt 0:00:27]} 17. Rc2 {[%emt 0:04:27]} b5 {[%emt 0:03:52]} 18. e4 {[%emt 0:05:07]} h6 {[%emt 0:02:03]} 19. e5 {[%emt 0:00:28]} hxg5 {[%emt 0:00:24]} 20. exd6 {[%emt 0:02:13]} Qxd6 {[%emt 0:01:09]} 21. Bxg5 {[%emt 0:00:20]} Ne4 {[%emt 0:10:05]} 22. Nxe4 {[%emt 0:03:28]} dxe4 {[%emt 0:00:26]} 23. Be3 {[%emt 0:05:42]} Rc6 {[%emt 0:03:33]} 24. Qe2 {[%emt 0:06:28]} Rfc8 {[%emt 0:02:23]} 25. Rfc1 {[%emt 0:00:38]} Nb6 {[%emt 0:04:12]} 26. Rc5 {[%emt 0:09:06]} Nd7 {[%emt 0:02:00]} 27. Rxc6 {[%emt 0:01:07]} Rxc6 {[%emt 0:00:21]} 28. Qd2 {[%emt 0:04:33]} Nb6 {[%emt 0:06:31]} 29. Rxc6 {[%emt 0:05:44]} Qxc6 {[%emt 0:00:27]} 30. Qc3 {[%emt 0:02:15]} Qxc3 {[%emt 0:04:28]} 31. bxc3 {[%emt 0:00:12]} Nc4 {[%emt 0:00:07]} 32. Bc1 {[%emt 0:00:23]} Kf8 {[%emt 0:00:06]} 33. f4 {[%emt 0:03:36]} Ke7 {[%emt 0:02:02]} 34. Kf2 {[%emt 0:00:14]} Kd6 {[%emt 0:00:39]} 35. Ke2 {[%emt 0:02:53]} Kd5 {[%emt 0:01:20]} 36. g4 {[%emt 0:01:18]} a5 {[%emt 0:03:39]} 37. h4 {[%emt 0:02:02]} Nd6 {[%emt 0:04:26]} 38. h5 {[%emt 0:01:56]} Kc4 {[%emt 0:03:30]} 39. Kd2 {[%emt 0:04:36]} f6 {[%emt 0:03:11]} 40. Kc2 {[%emt 0:01:23]} a4 {[%emt 0:01:27]} 41. g5 {[%emt 0:01:01]} Nf5 {[%emt 0:00:20]} 42. Bd2 {[%emt 0:02:00]} Kd5 {[%emt 0:01:07]} 43. Kd1 {[%emt 0:00:49]} e3 {[%emt 0:00:20]} 44. Bc1 {[%emt 0:00:18]} Ke4 {[%emt 0:00:34]} 45. Ke2 {[%emt 0:02:12]} Ng3+ {[%emt 0:00:16]} 46. Ke1 {[%emt 0:03:38]} Nxh5 {[%emt 0:00:10]} 47. gxf6 {[%emt 0:00:22]} gxf6 {[%emt 0:00:13]} 48. Kf1 {[%emt 0:02:24]} Nxf4 {[%emt 0:00:14]} 49. Ke1 {[%emt 0:00:42]} Nd3+ {[%emt 0:00:21]} 0-1

[Event "Bremer Silvester Open-B 2024"]
[Site "Bremen"]
[Date "2024.12.27"]
[Round "2.5"]
[White "Schroeder, Harm"]
[Black "Jablonski, Ture"]
[Result "0-1"]
[ECO "C42"]
[WhiteElo "1820"]
[BlackElo "1718"]
[Annotator "NA RC"]
[PlyCount "90"]
[EventDate "2024.12.16"]
[EventType "swiss"]
[EventCountry "GER"]
[SourceTitle "playchess.com"]
[Source "ChessBase"]
[SourceQuality "1"]
[TimeControl "5400+30"]

1. e4 {[%emt 0:00:40]} e5 {[%emt 0:00:10]} 2. Nf3 {[%emt 0:00:07]} Nf6 {[%emt 0:00:56]} 3. Nxe5 {[%emt 0:00:52]} d6 {[%emt 0:00:22]} 4. Nf3 {[%emt 0:00:38]} Nxe4 {[%emt 0:00:34]} 5. d4 {[%emt 0:00:19]} d5 {[%emt 0:00:32]} 6. Bd3 {[%emt 0:01:12]} Bd6 {[%emt 0:00:48]} 7. O-O {[%emt 0:01:39]} O-O {[%emt 0:00:38]} 8. Nbd2 {[%emt 0:04:00]} Bf5 {[%emt 0:02:34]} 9. Nb3 {[%emt 0:10:10]} Nd7 {[%emt 0:01:19]} 10. Be3 {[%emt 0:01:24]} Re8 {[%emt 0:02:43]} 11. c3 {[%emt 0:08:17]} Bg6 {[%emt 0:01:38]} 12. Qc2 {[%emt 0:01:16]} c6 {[%emt 0:01:29]} 13. Rfe1 {[%emt 0:05:52]} Qc7 {[%emt 0:05:48]} 14. Nbd2 {[%emt 0:09:24]} Ndf6 {[%emt 0:04:44]} 15. Nf1 {[%emt 0:02:38]} Ng4 {[%emt 0:20:54]} 16. h3 {[%emt 0:12:11]} Nxe3 {[%emt 0:06:02]} 17. Rxe3 {[%emt 0:01:16]} Re7 {[%emt 0:03:19]} 18. Nh4 {[%emt 0:03:42]} Rae8 {[%emt 0:01:26]} 19. Nxg6 {[%emt 0:00:21]} hxg6 {[%emt 0:00:06]} 20. Bxe4 {[%emt 0:02:27]} Rxe4 {[%emt 0:00:12]} 21. Rae1 {[%emt 0:00:56]} R4e7 {[%emt 0:02:11]} 22. Qd3 {[%emt 0:02:14]} Kf8 {[%emt 0:02:14]} 23. b3 {[%emt 0:02:40]} Bf4 {[%emt 0:04:42]} 24. Rxe7 {[%emt 0:01:46]} Rxe7 {[%emt 0:00:08]} 25. Rxe7 {[%emt 0:00:02]} Qxe7 {[%emt 0:00:28]} 26. g3 {[%emt 0:01:29]} Bh6 {[%emt 0:02:04]} 27. a4 {[%emt 0:02:29]} Qe4 {[%emt 0:01:24]} 28. Qd1 {[%emt 0:01:43]} Ke7 {[%emt 0:01:04]} 29. f3 {[%emt 0:01:20]} Qf5 {[%emt 0:01:30]} 30. Kg2 {[%emt 0:00:48]} Kd6 {[%emt 0:00:36]} 31. c4 {[%emt 0:07:04]} b6 {[%emt 0:03:23]} 32. Qe2 {[%emt 0:02:25]} Qe6 {[%emt 0:07:00]} 33. Qxe6+ {[%emt 0:01:34]} fxe6 {[%emt 0:00:33]} 34. f4 {[%emt 0:00:16]} g5 {[%emt 0:01:50]} 35. Kf3 {[%emt 0:00:20]} gxf4 {[%emt 0:00:49]} 36. gxf4 {[%emt 0:00:17]} c5 {[%emt 0:00:16]} 37. Ne3 {[%emt 0:03:36]} cxd4 {[%emt 0:00:34]} 38. Ng4 {[%emt 0:00:15]} dxc4 {[%emt 0:03:04]} 39. bxc4 {[%emt 0:01:01]} Kc5 {[%emt 0:00:23]} 40. Ne5 {[%emt 0:01:30]} Kb4 {[%emt 0:00:51]} 41. Ke4 {[%emt 0:02:37]} Kxa4 {[%emt 0:03:41]} 42. Ng4 {[%emt 0:00:29]} Kb3 {[%emt 0:03:03]} 43. Nxh6 {[%emt 0:00:25]} gxh6 {[%emt 0:00:04]} 44. Kxd4 {[%emt 0:00:33]} a5 {[%emt 0:00:12]} 45. Ke5 {[%emt 0:00:27]} a4 {[%emt 0:00:10]} 0-1

[Event "Bremer Silvester Open-B 2024"]
[Site "Bremen"]
[Date "2024.12.27"]
[Round "2.6"]
[White "Tresper, Philipp"]
[Black "Klose, Eli"]
[Result "0-1"]
[ECO "B22"]
[WhiteElo "1807"]
[BlackElo "1669"]
[Annotator "NA RC"]
[PlyCount "128"]
[EventDate "2024.12.16"]
[EventType "swiss"]
[EventCountry "GER"]
[SourceTitle "playchess.com"]
[Source "ChessBase"]
[SourceQuality "1"]
[TimeControl "5400+30"]

1. e4 {[%emt 0:00:02]} c5 {[%emt 0:00:52]} 2. c3 {[%emt 0:00:08]} Nf6 {[%emt 0:00:09]} 3. e5 {[%emt 0:00:06]} Nd5 {[%emt 0:00:11]} 4. d4 {[%emt 0:00:04]} cxd4 {[%emt 0:00:12]} 5. Nf3 {[%emt 0:00:05]} Nc6 {[%emt 0:00:11]} 6. Bc4 {[%emt 0:00:15]} Nb6 {[%emt 0:00:19]} 7. Bb3 {[%emt 0:00:08]} d5 {[%emt 0:00:18]} 8. cxd4 {[%emt 0:01:04]} h6 {[%emt 0:04:24]} 9. Nc3 {[%emt 0:02:29]} Bf5 {[%emt 0:00:49]} 10. a3 {[%emt 0:00:25]} a6 {[%emt 0:00:57]} 11. Be3 {[%emt 0:00:41]} Na5 {[%emt 0:01:43]} 12. O-O {[%emt 0:04:37]} Nxb3 {[%emt 0:04:39]} 13. Qxb3 {[%emt 0:00:12]} e6 {[%emt 0:03:38]} 14. a4 {[%emt 0:04:04]} Rb8 {[%emt 0:04:46]} 15. a5 {[%emt 0:07:51]} Nc4 {[%emt 0:00:44]} 16. Qa4+ {[%emt 0:00:08]} Qd7 {[%emt 0:00:19]} 17. Qxd7+ {[%emt 0:00:24]} Kxd7 {[%emt 1:14:49]} 18. b3 {[%emt 0:02:13]} Nxa5 {[%emt 0:00:00]} 19. Rxa5 {[%emt 0:06:28]} Bb4 {[%emt 0:00:00]} 20. Rxd5+ {[%emt 0:00:06]} exd5 {[%emt 0:00:00]} 21. Nxd5 {[%emt 0:00:10]} Ba5 {[%emt 0:00:00]} 22. b4 {[%emt 0:00:33]} Be6 {[%emt 0:00:00]} 23. Nf6+ {[%emt 0:07:55]} gxf6 {[%emt 0:00:00]} 24. bxa5 {[%emt 0:00:07]} Bd5 {[%emt 0:00:00]} 25. exf6 {[%emt 0:01:35]} Bxf3 {[%emt 0:00:00]} 26. gxf3 {[%emt 0:00:02]} Rhg8+ {[%emt 0:00:00]} 27. Kh1 {[%emt 0:00:09]} b5 {[%emt 0:00:00]} 28. d5 {[%emt 0:02:31]} Rg6 {[%emt 0:00:00]} 29. Bf4 {[%emt 0:01:59]} Rc8 {[%emt 0:00:00]} 30. Be5 {[%emt 0:01:04]} Rc5 {[%emt 0:00:00]} 31. Rd1 {[%emt 0:00:48]} b4 {[%emt 0:00:00]} 32. f4 {[%emt 0:04:09]} b3 {[%emt 0:00:00]} 33. h4 {[%emt 0:01:07]} Rg4 {[%emt 0:00:00]} 34. Kh2 {[%emt 0:02:42]} Rc2 {[%emt 0:00:00]} 35. Kh3 {[%emt 0:03:08]} h5 {[%emt 0:00:00]} 36. Rb1 {[%emt 0:00:24]} b2 {[%emt 0:00:00]} 37. Rxb2 {[%emt 0:01:26]} Rxb2 {[%emt 0:00:00]} 38. Bxb2 {[%emt 0:00:00]} Rxf4 {[%emt 0:00:00]} 39. Kg3 {[%emt 0:00:43]} Rg4+ {[%emt 0:00:00]} 40. Kh3 {[%emt 0:00:28]} Kd6 {[%emt 0:00:00]} 41. Bc1 {[%emt 0:02:14]} Kxd5 {[%emt 0:00:00]} 42. f3 {[%emt 0:00:49]} Rg1 {[%emt 0:00:00]} 43. Be3 {[%emt 0:00:30]} Rg6 {[%emt 0:00:00]} 44. Bg5 {[%emt 0:01:31]} Kc5 {[%emt 0:00:00]} 45. Kg3 {[%emt 0:00:35]} Kb5 {[%emt 0:00:00]} 46. Kf4 {[%emt 0:00:16]} Kc6 {[%emt 0:00:00]} 47. Kf5 {[%emt 0:02:36]} Kd5 {[%emt 0:00:00]} 48. Bf4 {[%emt 0:01:47]} Rg1 {[%emt 0:00:00]} 49. Bc7 {[%emt 0:03:37]} Rg2 {[%emt 0:00:00]} 50. Bb6 {[%emt 0:03:28]} Rg3 {[%emt 0:00:00]} 51. f4 {[%emt 0:00:46]} Rg2 {[%emt 0:00:00]} 52. Bc7 {[%emt 0:00:56]} Rg4 {[%emt 0:00:00]} 53. Be5 {[%emt 0:01:11]} Rxh4 {[%emt 0:00:00]} 54. Kg5 {[%emt 0:00:15]} Rh1 {[%emt 0:00:00]} 55. Kh6 {[%emt 0:00:43]} Ke6 {[%emt 0:00:00]} 56. Kg5 {[%emt 0:00:36]} h4 {[%emt 0:00:00]} 57. Bc7 {[%emt 0:03:21]} h3 {[%emt 0:00:00]} 58. f5+ {[%emt 0:01:29]} Kd7 {[%emt 0:00:00]} 59. Bf4 {[%emt 0:01:11]} Rf1 {[%emt 0:00:00]} 60. Bb8 {[%emt 0:01:56]} Rf2 {[%emt 0:00:00]} 61. Kh6 {[%emt 0:00:19]} Rg2 {[%emt 0:00:34]} 62. Kh7 {[%emt 0:00:29]} h2 {[%emt 0:00:26]} 63. Bxh2 {[%emt 0:00:07]} Rxh2+ {[%emt 0:00:12]} 64. Kg7 {[%emt 0:00:04]} Ke8 {[%emt 0:00:42]} 0-1

[Event "Bremer Silvester Open-B 2024"]
[Site "Bremen"]
[Date "2024.12.27"]
[Round "2.8"]
[White "Salim, Florian"]
[Black "Pass, Marlon"]
[Result "0-1"]
[ECO "B17"]
[WhiteElo "1579"]
[BlackElo "1796"]
[Annotator "NA RC"]
[PlyCount "60"]
[EventDate "2024.12.16"]
[EventType "swiss"]
[EventCountry "GER"]
[SourceTitle "playchess.com"]
[Source "ChessBase"]
[SourceQuality "1"]
[TimeControl "5400+30"]

1. e4 {[%emt 0:00:03]} c6 {[%emt 0:00:03]} 2. d4 {[%emt 0:00:09]} d5 {[%emt 0:00:05]} 3. Nc3 {[%emt 0:00:09]} dxe4 {[%emt 0:01:56]} 4. Nxe4 {[%emt 0:00:15]} Nd7 {[%emt 0:01:14]} 5. Nf3 {[%emt 0:03:11]} Ngf6 {[%emt 0:01:15]} 6. Nxf6+ {[%emt 0:01:18]} Nxf6 {[%emt 0:00:01]} 7. Bd3 {[%emt 0:00:31]} Bg4 {[%emt 0:00:56]} 8. c3 {[%emt 0:02:08]} Qd5 {[%emt 0:01:57]} 9. Be2 {[%emt 0:02:51]} e6 {[%emt 0:02:24]} 10. Ne5 {[%emt 0:01:32]} Qxg2 {[%emt 0:05:15]} 11. Bf3 {[%emt 0:04:48]} Qxh1+ {[%emt 0:00:31]} 12. Bxh1 {[%emt 0:00:12]} Bxd1 {[%emt 0:00:01]} 13. Kxd1 {[%emt 0:00:18]} Nd7 {[%emt 0:00:14]} 14. Nc4 {[%emt 0:01:16]} O-O-O {[%emt 0:00:34]} 15. Bf4 {[%emt 0:01:32]} f6 {[%emt 0:00:19]} 16. Kc2 {[%emt 0:01:24]} Nb6 {[%emt 0:00:13]} 17. Nxb6+ {[%emt 0:01:53]} axb6 {[%emt 0:00:01]} 18. Re1 {[%emt 0:00:43]} Kd7 {[%emt 0:00:26]} 19. Bf3 {[%emt 0:02:11]} h5 {[%emt 0:01:38]} 20. h4 {[%emt 0:01:10]} Ra8 {[%emt 0:00:53]} 21. a3 {[%emt 0:01:30]} Ra5 {[%emt 0:00:09]} 22. Rg1 {[%emt 0:02:22]} Rf5 {[%emt 0:00:12]} 23. Bxc6+ {[%emt 0:01:34]} bxc6 {[%emt 0:00:09]} 24. Be3 {[%emt 0:00:06]} Rf3 {[%emt 0:00:24]} 25. Rh1 {[%emt 0:00:45]} Rg8 {[%emt 0:00:17]} 26. Kd2 {[%emt 0:00:10]} Bd6 {[%emt 0:00:24]} 27. Ke2 {[%emt 0:00:32]} Rf5 {[%emt 0:00:01]} 28. Rg1 {[%emt 0:00:10]} Bf4 {[%emt 0:00:11]} 29. Bxf4 {[%emt 0:00:21]} Rxf4 {[%emt 0:00:01]} 30. Ke3 {[%emt 0:00:10]} Rxh4 {[%emt 0:00:05]} 0-1

[Event "Bremer Silvester Open-B 2024"]
[Site "Bremen"]
[Date "2024.12.28"]
[Round "3.1"]
[White "Jablonski, Ture"]
[Black "Hattenhauer, Klaus"]
[Result "1/2-1/2"]
[ECO "D02"]
[WhiteElo "1718"]
[BlackElo "1848"]
[Annotator "NA RC"]
[PlyCount "62"]
[EventDate "2024.12.16"]
[EventType "swiss"]
[EventCountry "GER"]
[SourceTitle "playchess.com"]
[Source "ChessBase"]
[SourceQuality "1"]
[TimeControl "5400+30"]

1. d4 {[%emt 0:00:05]} d5 {[%emt 0:00:05]} 2. Nf3 {[%emt 0:00:04]} Nf6 {[%emt 0:00:13]} 3. Bf4 {[%emt 0:00:06]} e6 {[%emt 0:01:38]} 4. e3 {[%emt 0:00:28]} c5 {[%emt 0:00:16]} 5. Be2 {[%emt 0:00:54]} Bd6 {[%emt 0:01:55]} 6. Bxd6 {[%emt 1:31:53]} Qxd6 {[%emt 0:00:23]} 7. dxc5 {[%emt 0:00:30]} Qxc5 {[%emt 0:00:25]} 8. c4 {[%emt 0:00:00]} O-O {[%emt 0:02:14]} 9. O-O {[%emt 0:00:00]} Nc6 {[%emt 0:01:51]} 10. Nbd2 {[%emt 0:00:00]} b6 {[%emt 0:02:50]} 11. Nb3 {[%emt 0:00:00]} Qe7 {[%emt 0:00:43]} 12. cxd5 {[%emt 0:00:00]} Nxd5 {[%emt 0:00:26]} 13. Rc1 {[%emt 0:00:00]} Bb7 {[%emt 0:00:56]} 14. Nfd4 {[%emt 0:00:00]} Ne5 {[%emt 0:09:30]} 15. Nd2 {[%emt 0:00:00]} Rfc8 {[%emt 0:06:37]} 16. N4f3 {[%emt 0:00:00]} Ng6 {[%emt 0:08:38]} 17. Qb3 {[%emt 0:00:00]} h6 {[%emt 0:02:29]} 18. Ne4 {[%emt 0:00:00]} Ndf4 {[%emt 0:02:49]} 19. exf4 {[%emt 0:00:00]} Bxe4 {[%emt 0:00:43]} 20. Qe3 {[%emt 0:00:00]} Qb7 {[%emt 0:07:42]} 21. a3 {[%emt 0:00:00]} Bd5 {[%emt 0:05:05]} 22. g3 {[%emt 0:00:00]} Rxc1 {[%emt 0:02:10]} 23. Rxc1 {[%emt 0:00:00]} Rc8 {[%emt 0:00:19]} 24. Rxc8+ {[%emt 0:00:00]} Qxc8 {[%emt 0:00:10]} 25. Nd4 {[%emt 0:00:00]} Qd7 {[%emt 0:07:49]} 26. Bf3 {[%emt 0:00:00]} Bxf3 {[%emt 0:03:13]} 27. Nxf3 {[%emt 0:00:00]} Qd1+ {[%emt 0:00:32]} 28. Kg2 {[%emt 0:00:00]} Qc2 {[%emt 0:01:33]} 29. Qd2 {[%emt 0:00:00]} Qc6 {[%emt 0:00:50]} 30. Qd8+ {[%emt 0:00:00]} Kh7 {[%emt 0:01:50]} 31. Qd3 {[%emt 0:00:00]} Kg8 {[%emt 0:01:24]} 1/2-1/2